bitfinex-derivatives/quotes_BTCF0:USTF0_20250902
["timestamp","ask_amount","ask_price","bid_price","bid_amount"]
[1756827628714,1.5180417,111030.0,111000.0,2.61895138]
[1756827628715,0.0180417,111030.0,111000.0,2.61895138]
[1756827629017,0.3080417,111030.0,111020.0,1.18834689]
[1756827629218,0.3080417,111030.0,111020.0,2.05622689]
[1756827629517,0.6410217,111030.0,111010.0,0.3608]
[1756827629817,0.08298,111020.0,111010.0,0.3588]
[1756827630215,0.1730547,111010.0,111000.0,0.38782]
[1756827630417,0.1730547,111010.0,111000.0,1.2557]
[1756827630418,0.19327106,111010.0,111000.0,1.2557]
[1756827630618,0.19327106,111010.0,111000.0,1.2547]
[1756827630819,0.19327106,111010.0,111000.0,1.71524689]
[1756827631216,0.15904106,111010.0,111000.0,1.71524689]
[1756827631419,0.13557106,111010.0,111000.0,1.71524689]
[1756827631619,0.13557106,111010.0,111000.0,1.2547]
[1756827631919,0.11229106,111010.0,111000.0,1.71524689]
[1756827632315,0.16204106,111010.0,111000.0,0.38782]
[1756827632514,0.19627106,111010.0,111000.0,1.1403]
[1756827632715,0.19627106,111010.0,111000.0,1.60084689]
[1756827633714,0.11129106,111010.0,111000.0,1.60084689]
[1756827633914,0.14452106,111010.0,111000.0,1.60084689]
[1756827634117,0.11029106,111010.0,111000.0,1.60084689]
[1756827634624,0.11029106,111010.0,111000.0,2.62139378]
[1756827634922,0.11029106,111010.0,111000.0,2.65139378]
[1756827635220,0.11029106,111010.0,111000.0,2.68139378]
[1756827635921,0.002,111010.0,111000.0,2.77147518]
[1756827636427,0.002,111010.0,111000.0,2.88587518]
[1756827636819,0.002,111010.0,111000.0,1.92891378]
[1756827637023,0.002,111010.0,111000.0,1.22738561]
[1756827637321,0.002,111010.0,111000.0,2.10202561]
[1756827637517,0.08498,111010.0,111000.0,1.27139872]
[1756827637722,0.08498,111010.0,111000.0,1.26254]
[1756827637723,0.1750533,111010.0,111000.0,1.26254]
[1756827638313,0.1750533,111010.0,111000.0,1.72308689]
[1756827638825,0.1750533,111010.0,111000.0,1.26254]
[1756827639028,0.1750533,111010.0,111000.0,1.72308689]
[1756827639231,0.1750533,111010.0,111000.0,0.84836689]
[1756827639521,0.1750533,111010.0,111000.0,1.26242]
[1756827640321,0.0920733,111010.0,111000.0,1.72296689]
[1756827640715,0.1161833,111010.0,111000.0,0.38782]
[1756827640914,0.1161833,111010.0,111000.0,1.72208689]
[1756827641214,0.0920733,111010.0,111000.0,2.18263378]
[1756827641415,0.0920733,111010.0,111000.0,2.89271518]
[1756827644730,0.002,111010.0,111000.0,2.89271518]
[1756827645729,0.0920734,111010.0,111000.0,2.01899518]
[1756827645931,0.0920734,111010.0,111000.0,2.89367518]
[1756827646227,0.0920734,111010.0,111000.0,2.84367518]
[1756827646730,0.0920734,111010.0,111000.0,2.84339518]
[1756827647423,0.0920734,111010.0,111000.0,0.84836689]
[1756827647622,0.0920734,111010.0,111000.0,1.72228689]
[1756827647623,0.1780434,111010.0,111000.0,1.72228689]
[1756827647831,0.0920734,111010.0,111000.0,2.04228689]
[1756827648025,0.0920734,111010.0,111000.0,1.72228689]
[1756827648334,0.0920734,111010.0,111000.0,2.06228689]
[1756827649334,0.0920734,111010.0,111000.0,2.61291528]
[1756827649519,0.0920734,111010.0,111000.0,2.86291528]
[1756827649835,0.002,111010.0,111000.0,2.86291528]
[1756827650029,0.0920743,111010.0,111000.0,2.86291528]
[1756827650219,0.0920743,111010.0,111000.0,1.98899528]
[1756827650423,0.0920743,111010.0,111000.0,0.72782]
[1756827650623,0.0920743,111010.0,111000.0,2.06124689]
[1756827651023,0.0920743,111010.0,111000.0,2.52179378]
[1756827651226,0.0920743,111010.0,111000.0,2.61187698]
[1756827651518,0.0920743,111010.0,111000.0,2.86187698]
[1756827651519,0.002,111010.0,111000.0,2.86187698]
[1756827651924,0.1081032,111030.0,111020.0,0.03022]
[1756827652122,0.1081032,111030.0,111020.0,2.46504689]
[1756827653023,0.1101032,111030.0,111020.0,2.4739236]
[1756827653227,0.1101032,111030.0,111020.0,1.07069671]
[1756827653529,0.4460732,111030.0,111020.0,1.62378]
[1756827653925,0.4530732,111030.0,111020.0,1.62478]
[1756827654121,0.4530732,111030.0,111020.0,2.08532689]
[1756827654927,0.4530732,111030.0,111020.0,1.62478]
[1756827655134,0.4530732,111030.0,111020.0,2.08532689]
[1756827656136,0.4530732,111030.0,111020.0,2.0965754]
[1756827656324,0.4350315,111030.0,111020.0,2.0965754]
[1756827656529,0.4350315,111030.0,111020.0,2.08736689]
[1756827657033,0.0990615,111030.0,111020.0,2.08736689]
[1756827657328,0.009,111030.0,111020.0,2.72547178]
[1756827657636,0.007,111030.0,111020.0,2.81553728]
[1756827657834,0.007,111030.0,111020.0,2.82450121]
[1756827658432,0.007,111030.0,111020.0,1.95050121]
[1756827658628,0.007,111030.0,111020.0,2.82522121]
[1756827659135,0.002,111030.0,111020.0,2.82722121]
[1756827659335,0.002,111030.0,111020.0,2.57722121]
[1756827660036,0.002,111030.0,111020.0,3.0377681]
[1756827660338,0.002,111030.0,111020.0,3.3877681]
[1756827660529,0.0900456,111050.0,111020.0,3.3877681]
[1756827660530,0.0900369,111060.0,111050.0,0.03022]
[1756827660725,0.0900301,111070.0,111060.0,0.03022]
[1756827660930,0.0900301,111070.0,111060.0,1.22156689]
[1756827661135,0.0900301,111070.0,111060.0,2.09568689]
[1756827661331,0.1389474,111080.0,111070.0,0.0072]
[1756827661532,0.1759874,111080.0,111070.0,1.72816689]
[1756827661724,0.4249874,111080.0,111070.0,1.72716689]
[1756827662129,0.4249874,111080.0,111070.0,0.82134689]
[1756827662330,0.4249874,111080.0,111070.0,1.69850689]
[1756827662532,0.4249874,111080.0,111070.0,1.85850689]
[1756827662738,0.4249874,111080.0,111070.0,1.69850689]
[1756827662940,0.4299874,111080.0,111070.0,1.69950689]
[1756827663534,0.4299874,111080.0,111070.0,1.23896]
[1756827663739,0.4299874,111080.0,111070.0,1.24516]
[1756827664036,0.0940174,111080.0,111070.0,2.07570689]
[1756827664238,0.0950174,111080.0,111070.0,2.02570689]
[1756827664538,0.0950174,111080.0,111070.0,2.13681168]
[1756827664740,0.0950174,111080.0,111070.0,1.77681168]
[1756827664936,0.0950174,111080.0,111070.0,2.13681168]
[1756827665533,0.0950174,111080.0,111070.0,1.78566168]
[1756827665732,0.0950174,111080.0,111070.0,1.80472168]
[1756827665733,0.1809874,111080.0,111070.0,1.80472168]
[1756827666236,0.1809874,111080.0,111070.0,1.79535168]
[1756827666433,0.1439474,111080.0,111070.0,1.79535168]
[1756827666634,0.1809874,111080.0,111070.0,1.79711168]
[1756827667442,0.4309874,111080.0,111070.0,0.43290479]
[1756827667643,0.4309874,111080.0,111070.0,1.77729168]
[1756827668151,0.4309874,111080.0,111070.0,1.23892]
[1756827668337,0.4309874,111080.0,111070.0,1.24512]
[1756827668737,0.4309874,111080.0,111070.0,1.70566689]
[1756827668935,0.4309874,111080.0,111070.0,0.83845689]
[1756827669137,0.4309874,111080.0,111070.0,1.69946689]
[1756827669843,0.4309874,111080.0,111070.0,1.70566689]
[1756827671339,0.4309874,111080.0,111070.0,0.3618]
[1756827671545,0.7809874,111080.0,111070.0,1.2376]
[1756827671937,0.7809874,111080.0,111070.0,1.2438]
[1756827672142,0.7409874,111080.0,111070.0,1.2438]
[1756827672339,0.7409874,111080.0,111070.0,1.2376]
[1756827673045,0.7409874,111080.0,111070.0,1.2438]
[1756827673540,0.7409874,111080.0,111070.0,1.2376]
[1756827673747,0.7409874,111080.0,111070.0,1.2438]
[1756827674547,0.7409874,111080.0,111070.0,1.2376]
[1756827674746,0.7609874,111080.0,111070.0,1.2376]
[1756827675246,0.4309874,111080.0,111070.0,1.2438]
[1756827675446,0.7909874,111080.0,111070.0,1.2438]
[1756827676148,0.4309874,111080.0,111070.0,1.70434689]
[1756827676552,0.4309874,111080.0,111070.0,1.2438]
[1756827676849,0.4309874,111080.0,111070.0,1.70434689]
[1756827677548,0.4309874,111080.0,111070.0,1.2438]
[1756827682154,0.3939474,111080.0,111070.0,1.2438]
[1756827682354,0.1191274,111080.0,111070.0,1.2438]
[1756827682650,0.0950174,111080.0,111070.0,2.42044898]
[1756827683146,0.0950174,111080.0,111070.0,2.33042328]
[1756827684059,0.1441574,111080.0,111070.0,0.38782]
[1756827684352,0.1790074,111080.0,111070.0,1.25826]
[1756827684745,0.1441574,111080.0,111070.0,0.84444328]
[1756827685044,0.1790074,111080.0,111070.0,1.71472328]
[1756827685240,0.1790074,111080.0,111070.0,1.71456328]
[1756827685441,0.0950174,111080.0,111070.0,1.71456328]
[1756827686448,0.1441574,111080.0,111070.0,1.71464328]
[1756827686649,0.1790074,111080.0,111070.0,0.84444328]
[1756827686846,0.1790074,111080.0,111070.0,0.3618]
[1756827687149,1.12006515,111080.0,111070.0,0.87124]
[1756827687350,0.81006515,111080.0,111070.0,0.87124]
[1756827687549,0.44926515,111080.0,111070.0,0.88115]
[1756827687853,0.44926515,111080.0,111070.0,0.89726]
[1756827688044,0.44926515,111080.0,111070.0,1.25806]
[1756827688251,0.44926515,111080.0,111070.0,1.71468328]
[1756827688252,0.11527515,111080.0,111070.0,1.71468328]
[1756827689454,0.11527515,111080.0,111070.0,1.25806]
[1756827689652,0.11527515,111080.0,111070.0,1.71468328]
[1756827690353,0.19926515,111080.0,111070.0,0.38782]
[1756827690655,0.19926515,111080.0,111070.0,1.25734]
[1756827691552,0.14005515,111080.0,111070.0,1.25734]
[1756827691750,0.11527515,111080.0,111070.0,1.71396328]
[1756827691950,0.11527515,111080.0,111070.0,2.09396328]
[1756827692254,0.006,111080.0,111070.0,2.45237804]
[1756827693655,0.08399,111130.0,111120.0,0.01982]
[1756827693852,0.46399,111130.0,111120.0,1.25634]
[1756827694855,0.46399,111130.0,111120.0,1.25014]
[1756827695655,0.46399,111130.0,111120.0,0.38062]
[1756827695858,0.46399,111130.0,111120.0,1.24998]
[1756827696249,0.46899,111130.0,111120.0,1.25098]
[1756827696852,0.46899,111130.0,111120.0,1.25018]
[1756827697057,0.46899,111130.0,111120.0,1.25638]
[1756827697656,0.71899,111130.0,111120.0,1.25638]
[1756827697854,0.71899,111130.0,111120.0,1.71300328]
[1756827698057,0.68414,111130.0,111120.0,1.25638]
[1756827698252,0.68414,111130.0,111120.0,1.71300328]
[1756827698554,0.43414,111130.0,111120.0,1.71212328]
[1756827700153,0.46904,111130.0,111120.0,0.84444328]
[1756827700359,0.46904,111130.0,111120.0,1.25538]
[1756827700554,0.46904,111130.0,111120.0,0.38782]
[1756827700760,0.46904,111130.0,111120.0,1.2561]
[1756827702160,0.43414,111130.0,111120.0,1.71272328]
[1756827702762,0.46904,111130.0,111120.0,1.71272328]
[1756827703056,0.46904,111130.0,111120.0,0.38782]
[1756827703262,0.46904,111130.0,111120.0,1.25518]
[1756827703761,0.385,111130.0,111120.0,1.25518]
[1756827703960,0.385,111130.0,111120.0,1.71180328]
[1756827704861,0.385,111130.0,111120.0,2.07260328]
[1756827705963,0.185,111130.0,111120.0,2.07260328]
[1756827706153,0.185,111130.0,111120.0,1.23524328]
[1756827706368,0.185,111130.0,111120.0,2.10164328]
[1756827706561,0.185,111130.0,111120.0,2.07164328]
[1756827706863,0.185,111130.0,111120.0,2.40164328]
[1756827707051,0.185,111130.0,111120.0,2.11164328]
[1756827707256,0.185,111130.0,111120.0,2.07164328]
[1756827707463,0.185,111130.0,111120.0,2.11164328]
[1756827707657,0.185,111130.0,111120.0,2.43164328]
[1756827707851,0.185,111130.0,111120.0,2.39164328]
[1756827707852,0.005,111130.0,111120.0,2.39164328]
[1756827708056,0.005,111130.0,111120.0,2.69164328]
[1756827708671,0.005,111130.0,111120.0,2.78162868]
[1756827710472,0.005,111130.0,111120.0,2.78114868]
[1756827710857,0.005,111130.0,111120.0,1.82524328]
[1756827711162,0.005,111130.0,111120.0,1.11862]
[1756827711363,0.0399,111130.0,111120.0,2.44160328]
[1756827711563,0.0399,111130.0,111120.0,2.07160328]
[1756827711763,0.0399,111130.0,111120.0,0.78862]
[1756827711963,0.0399,111130.0,111120.0,1.65478]
[1756827712270,0.0399,111130.0,111120.0,1.24524328]
[1756827712471,0.33539,111130.0,111120.0,1.65478]
[1756827712667,0.69539,111130.0,111120.0,1.64854]
[1756827712869,0.69539,111130.0,111120.0,0.77251]
[1756827713065,0.69539,111130.0,111120.0,0.7626]
[1756827713258,0.69539,111130.0,111120.0,0.9068]
[1756827713462,0.33539,111130.0,111120.0,0.9068]
[1756827713667,0.33539,111130.0,111120.0,1.29362]
[1756827713875,0.08539,111130.0,111120.0,1.75024328]
[1756827714074,0.08539,111130.0,111120.0,0.041]
[1756827714280,0.08539,111130.0,111120.0,0.90684]
[1756827714679,0.08539,111130.0,111120.0,0.91675]
[1756827714881,0.08539,111130.0,111120.0,0.05711]
[1756827715183,1.02630112,111130.0,111120.0,0.001]
[1756827716181,0.73630112,111130.0,111120.0,0.001]
[1756827716483,0.10550112,111130.0,111120.0,0.38782]
[1756827717181,0.10550112,111130.0,111120.0,0.84444328]
[1756827717485,0.10550112,111130.0,111120.0,0.38782]
[1756827720386,0.10550112,111130.0,111120.0,0.8921]
[1756827720678,0.41550112,111130.0,111120.0,0.01091]
[1756827720886,1.02630112,111130.0,111120.0,0.001]
[1756827721877,0.35550112,111130.0,111120.0,0.001]
[1756827722179,0.68550112,111130.0,111120.0,0.001]
[1756827722369,0.67550112,111130.0,111120.0,0.001]
[1756827722783,0.10550112,111130.0,111120.0,0.02702]
[1756827723081,0.10550112,111130.0,111120.0,0.38782]
[1756827723283,0.10550112,111130.0,111120.0,0.84444328]
[1756827723491,0.07060112,111130.0,111120.0,0.84444328]
[1756827723978,0.07060112,111130.0,111120.0,0.38782]
[1756827724181,0.10550112,111130.0,111120.0,0.38782]
[1756827725278,0.10550112,111130.0,111120.0,1.25206]
[1756827726278,0.07060112,111130.0,111120.0,1.25206]
[1756827726686,0.10550112,111130.0,111120.0,1.25126]
[1756827727077,0.10550112,111130.0,111120.0,0.38782]
[1756827727274,0.10550112,111130.0,111120.0,1.25126]
[1756827727880,0.10550112,111130.0,111120.0,0.38782]
[1756827728075,0.10550112,111130.0,111120.0,1.25122]
[1756827731086,0.10550112,111130.0,111120.0,1.25002]
[1756827731285,0.10550112,111130.0,111120.0,0.38782]
[1756827731484,0.10550112,111130.0,111120.0,1.2495]
[1756827731694,0.10550112,111130.0,111120.0,0.38782]
[1756827731880,0.10550112,111130.0,111120.0,1.2495]
[1756827733088,0.07060112,111130.0,111120.0,1.2495]
[1756827733386,0.02511112,111130.0,111120.0,1.70612328]
[1756827733984,0.02511112,111130.0,111120.0,1.95612328]
[1756827734186,0.02511112,111130.0,111120.0,2.04610878]
[1756827734488,0.02511112,111130.0,111120.0,1.95612328]
[1756827735788,0.02511112,111130.0,111120.0,2.28612328]
[1756827736090,0.005,111130.0,111120.0,2.28612328]
[1756827737386,0.005,111130.0,111120.0,2.28536328]
[1756827738296,0.005,111130.0,111120.0,1.42444328]
[1756827738595,0.005,111130.0,111120.0,2.28532328]
[1756827739495,0.005,111130.0,111120.0,2.74702352]
[1756827739797,0.005,111130.0,111120.0,1.95786176]
[1756827740396,0.42886,111130.0,111120.0,1.2487]
[1756827740692,0.08886,111130.0,111120.0,1.2487]
[1756827740891,0.0519,111130.0,111120.0,1.70786176]
[1756827741194,0.08886,111130.0,111120.0,1.70786176]
[1756827741390,0.0519,111130.0,111120.0,1.70786176]
[1756827741591,0.41886,111130.0,111120.0,0.84698176]
[1756827741787,0.41886,111130.0,111120.0,1.24866]
[1756827742900,0.41886,111130.0,111120.0,1.70782176]
[1756827743101,0.08886,111130.0,111120.0,1.70782176]
[1756827743296,0.45886,111130.0,111120.0,1.70782176]
[1756827743797,0.08886,111130.0,111120.0,0.38782]
[1756827744100,0.42886,111130.0,111120.0,1.24866]
[1756827744302,0.40886,111130.0,111120.0,1.24866]
[1756827745001,0.08886,111130.0,111120.0,1.24866]
[1756827745203,0.45886,111130.0,111120.0,1.24866]
[1756827745604,0.08886,111130.0,111120.0,1.24866]
[1756827745997,0.46886,111130.0,111120.0,1.24866]
[1756827750208,0.46886,111130.0,111120.0,0.38782]
[1756827750409,0.46886,111130.0,111120.0,1.24862]
[1756827750701,0.82966,111130.0,111120.0,0.01091]
[1756827750902,0.82966,111130.0,111120.0,0.87167]
[1756827751812,0.82966,111130.0,111120.0,0.87787]
[1756827752302,1.07966,111130.0,111120.0,0.88778]
[1756827752809,0.71886,111130.0,111120.0,0.88778]
[1756827753401,0.71886,111130.0,111120.0,0.02082]
[1756827753708,1.53882176,111130.0,111120.0,0.001]
[1756827754598,2.39954176,111130.0,111120.0,0.001]
[1756827755297,2.39954176,111130.0,111110.0,0.00014]
[1756827755498,0.09864,111100.0,111090.0,0.37231]
[1756827755704,0.43864,111100.0,111090.0,0.42139]
[1756827756209,0.44759593,111100.0,111090.0,0.40254]
[1756827756411,0.08386,111090.0,111080.0,0.39162]
[1756827756612,0.15705458,111090.0,111080.0,0.39162]
[1756827757211,0.08086,111090.0,111080.0,0.39162]
[1756827757811,0.08186,111090.0,111080.0,0.39562]
[1756827758214,0.41186,111090.0,111080.0,0.03482]
[1756827758408,0.43206275,111090.0,111080.0,0.03482]
[1756827759213,1.14122451,111090.0,111080.0,0.004]
[1756827761110,2.36278451,111090.0,111070.0,0.01838926]
[1756827761303,0.08391,111070.0,111060.0,0.91698]
[1756827763917,0.08491,111070.0,111060.0,0.92098]
[1756827765017,0.08591,111070.0,111060.0,0.91798]
[1756827766113,0.002,111070.0,111060.0,1.98794176]
[1756827767014,0.002,111070.0,111060.0,2.07797626]
[1756827767222,0.002,111070.0,111060.0,2.42797626]
[1756827767517,0.002,111070.0,111060.0,1.98794176]
[1756827768517,0.002,111070.0,111060.0,1.12718176]
[1756827768713,0.002,111070.0,111060.0,0.87718176]
[1756827768916,0.05145,111070.0,111060.0,0.41802]
[1756827769121,0.08591,111070.0,111060.0,1.27878]
[1756827769322,0.002,111070.0,111060.0,1.73794176]
[1756827769719,0.03646,111070.0,111060.0,0.41802]
[1756827769917,1.2356683,111070.0,111060.0,0.05722]
[1756827770122,0.02179654,111070.0,111060.0,0.87718176]
[1756827770420,0.07124654,111070.0,111060.0,0.41802]
[1756827770621,0.07124654,111070.0,111060.0,0.87718176]
[1756827770921,0.04639654,111070.0,111060.0,0.87718176]
[1756827771219,0.02179654,111070.0,111060.0,0.87718176]
[1756827771723,0.07124654,111070.0,111060.0,0.41802]
[1756827772023,0.43124654,111070.0,111060.0,0.41802]
[1756827773120,0.46570654,111070.0,111060.0,1.27874]
[1756827773622,0.46570654,111070.0,111060.0,0.41802]
[1756827773822,0.46570654,111070.0,111060.0,1.27874]
[1756827774624,0.43570654,111070.0,111060.0,1.27874]
[1756827775328,0.03179654,111070.0,111060.0,1.27874]
[1756827775625,0.03179654,111070.0,111060.0,2.01439164]
[1756827776715,0.03179654,111070.0,111060.0,1.27874]
[1756827776919,0.39179654,111070.0,111060.0,1.64656582]
[1756827777221,0.40179654,111070.0,111060.0,1.64656582]
[1756827777421,0.04179654,111070.0,111060.0,1.73854163]
[1756827778041,0.04179654,111070.0,111060.0,2.29854163]
[1756827778042,0.022,111070.0,111060.0,2.29854163]
[1756827778239,0.022,111070.0,111060.0,2.36854163]
[1756827778538,0.022,111070.0,111060.0,2.29854163]
[1756827779040,0.002,111070.0,111060.0,2.00854163]
[1756827779341,0.002,111070.0,111060.0,1.75854163]
[1756827779641,0.002,111070.0,111060.0,1.73854163]
[1756827779831,0.002,111070.0,111060.0,0.87782163]
[1756827780031,0.002,111070.0,111060.0,2.10846163]
[1756827780443,0.002,111070.0,111060.0,2.35846163]
[1756827781034,0.002,111070.0,111060.0,2.44849443]
[1756827781438,0.002,111070.0,111060.0,2.38849443]
[1756827781642,0.002,111070.0,111060.0,1.21785443]
[1756827781846,0.002,111070.0,111060.0,2.44845443]
[1756827783129,0.002,111070.0,111060.0,1.9886528]
[1756827783329,0.002,111070.0,111060.0,2.44845443]
[1756827785343,0.002,111070.0,111060.0,2.44833423]
[1756827785545,0.002,111070.0,111060.0,1.58785423]
[1756827785748,0.002,111070.0,111060.0,1.49782163]
[1756827786044,0.002,111070.0,111060.0,1.24782163]
[1756827786343,0.002,111070.0,111060.0,2.19825423]
[1756827788940,0.002,111070.0,111060.0,2.10814163]
[1756827789446,0.002,111070.0,111060.0,2.19817363]
[1756827790343,0.002,111070.0,111060.0,2.10810163]
[1756827790640,0.002,111070.0,111060.0,2.19813663]
[1756827791041,0.002,111070.0,111060.0,2.19813583]
[1756827791541,0.002,111070.0,111060.0,2.10806163]
[1756827792243,0.002,111070.0,111060.0,2.19809613]
[1756827792954,0.002,111070.0,111060.0,0.78802]
[1756827793142,0.002,111070.0,111060.0,2.10802163]
[1756827793338,0.002,111070.0,111060.0,1.24782163]
[1756827793544,0.002,111070.0,111060.0,2.10798163]
[1756827795251,0.002,111070.0,111060.0,2.19801613]
[1756827795749,0.002,111070.0,111060.0,1.24782163]
[1756827795946,0.002,111070.0,111060.0,2.10794163]
[1756827796546,0.002,111070.0,111060.0,2.19797613]
[1756827797450,0.002,111070.0,111060.0,1.7381745]
[1756827797748,0.002,111070.0,111060.0,2.84121585]
[1756827799542,0.002,111070.0,111060.0,2.47349624]
[1756827802254,0.002,111070.0,111060.0,2.47333624]
[1756827802750,0.002,111070.0,111060.0,1.61337624]
[1756827802949,0.002,111070.0,111060.0,2.47325624]
[1756827803150,0.03742,111070.0,111060.0,2.38322174]
[1756827803347,0.002,111070.0,111060.0,2.38322174]
[1756827803547,0.002,111070.0,111060.0,2.47325624]
[1756827806655,0.002,111070.0,111060.0,1.61337624]
[1756827806852,0.002,111070.0,111060.0,2.47309624]
[1756827808361,0.002,111070.0,111060.0,2.38306174]
[1756827808855,0.002,111070.0,111060.0,2.47309664]
[1756827809860,0.002,111070.0,111060.0,1.61337664]
[1756827810062,0.002,111070.0,111060.0,2.47301664]
[1756827811376,0.04923,111100.0,111060.0,3.09067751]
[1756827811562,0.05563764,111110.0,111090.0,1.50254174]
[1756827811750,0.19447764,111110.0,111100.0,1.64798087]
[1756827812664,0.19447764,111110.0,111100.0,1.98798087]
[1756827812958,0.19447764,111110.0,111100.0,1.66798087]
[1756827813157,0.11021764,111110.0,111100.0,2.00798087]
[1756827813356,0.03542,111120.0,111100.0,2.00798087]
[1756827813357,0.08426,111130.0,111120.0,0.05996]
[1756827813557,0.39426,111130.0,111120.0,1.64790087]
[1756827814761,0.39426,111130.0,111120.0,0.78842087]
[1756827814966,0.39426,111130.0,111120.0,1.641]
[1756827815265,0.39426,111130.0,111120.0,2.00866087]
[1756827816055,0.39926,111130.0,111120.0,2.00966087]
[1756827816365,0.39926,111130.0,111120.0,1.642]
[1756827816557,0.39926,111130.0,111120.0,2.00966087]
[1756827817164,0.39926,111130.0,111120.0,1.15022087]
[1756827817367,0.39926,111130.0,111120.0,2.00950087]
[1756827817860,0.39926,111130.0,111120.0,1.15022087]
[1756827818066,0.39926,111130.0,111120.0,1.6418]
[1756827818364,0.39926,111130.0,111120.0,1.99508087]
[1756827818765,0.39926,111130.0,111120.0,2.00942087]
[1756827819265,0.39926,111130.0,111120.0,1.15022087]
[1756827819465,0.39926,111130.0,111120.0,1.64172]
[1756827819660,0.39926,111130.0,111120.0,1.15022087]
[1756827819864,0.39926,111130.0,111120.0,2.00934087]
[1756827820667,0.39926,111130.0,111120.0,1.15022087]
[1756827820854,0.39926,111130.0,111120.0,2.00930087]
[1756827821058,0.39926,111130.0,111120.0,2.00926087]
[1756827822061,0.64926,111130.0,111120.0,0.74528]
[1756827822254,0.64926,111130.0,111120.0,0.7226]
[1756827822459,1.01692087,111130.0,111120.0,1.21264]
[1756827823162,0.64926,111130.0,111120.0,1.21264]
[1756827823560,0.64926,111130.0,111120.0,1.22076]
[1756827823760,0.64926,111130.0,111120.0,1.22068]
[1756827824360,1.01692087,111130.0,111120.0,0.85988]
[1756827824864,1.37772087,111130.0,111120.0,0.85988]
[1756827825759,1.37772087,111130.0,111120.0,0.85984]
[1756827827761,1.37772087,111130.0,111120.0,0.85968]
[1756827828161,1.12772087,111130.0,111120.0,0.85968]
[1756827828358,0.39926,111130.0,111120.0,1.64802087]
[1756827828671,0.64926,111130.0,111120.0,1.64802087]
[1756827828967,0.64926,111130.0,111120.0,1.28036]
[1756827831060,0.64926,111130.0,111120.0,1.64802087]
[1756827831061,0.05384,111130.0,111120.0,1.64802087]
[1756827831267,0.16384,111130.0,111120.0,1.64802087]
[1756827831669,0.19899,111130.0,111120.0,1.64802087]
[1756827831968,0.13924,111130.0,111120.0,1.64802087]
[1756827832163,0.13924,111130.0,111120.0,1.28036]
[1756827832368,0.005,111130.0,111120.0,2.01568174]
[1756827832563,0.005,111130.0,111120.0,2.39568174]
[1756827832759,0.005,111130.0,111120.0,2.03568174]
[1756827833767,0.005,111130.0,111120.0,2.36568174]
[1756827834069,0.005,111130.0,111120.0,1.30036]
[1756827834269,0.005,111130.0,111120.0,2.03568174]
[1756827837270,0.005,111130.0,111120.0,2.35568174]
[1756827837468,0.005,111130.0,111120.0,2.03568174]
[1756827837873,0.005,111130.0,111120.0,1.15700174]
[1756827838170,0.005,111130.0,111120.0,2.01520174]
[1756827838369,0.005,111130.0,111120.0,1.64754087]
[1756827838872,0.04015,111130.0,111120.0,1.27984]
[1756827839060,0.46915,111130.0,111120.0,0.42168]
[1756827839261,0.78681087,111130.0,111120.0,1.27976]
[1756827839661,0.78681087,111130.0,111120.0,0.42168]
[1756827839866,0.78681087,111130.0,111120.0,1.26542]
[1756827840167,0.43915,111130.0,111120.0,1.27976]
[1756827840471,0.43915,111130.0,111120.0,1.27972]
[1756827842072,0.08915,111130.0,111120.0,1.27972]
[1756827842265,0.45915,111130.0,111120.0,1.27972]
[1756827843460,0.45915,111130.0,111120.0,0.42168]
[1756827843663,0.82681087,111130.0,111120.0,1.2796]
[1756827844574,0.08915,111130.0,111120.0,1.2796]
[1756827844870,0.42915,111130.0,111120.0,1.2796]
[1756827845464,0.08915,111130.0,111120.0,1.2796]
[1756827845671,0.42915,111130.0,111120.0,1.2796]
[1756827846372,0.42915,111130.0,111120.0,0.42168]
[1756827846583,0.08915,111130.0,111120.0,1.27948]
[1756827846870,0.77681087,111130.0,111120.0,1.27948]
[1756827847171,0.08915,111130.0,111120.0,1.27948]
[1756827847565,0.79681087,111130.0,111120.0,1.27948]
[1756827847765,0.79681087,111130.0,111120.0,1.27944]
[1756827848066,0.79681087,111130.0,111120.0,0.06088]
[1756827848067,0.08915,111130.0,111120.0,0.06088]
[1756827848267,0.81681087,111130.0,111120.0,0.91856]
[1756827850277,0.81681087,111130.0,111120.0,0.001]
[1756827850577,1.17761087,111130.0,111120.0,0.001]
[1756827850767,1.17761087,111130.0,111120.0,0.06102]
[1756827850967,1.17761087,111130.0,111120.0,0.04668]
[1756827852669,1.42761087,111130.0,111120.0,0.001]
[1756827852876,0.09893,111100.0,111090.0,0.42342]
[1756827853067,0.86687689,111100.0,111090.0,0.83122]
[1756827853670,0.49921602,111100.0,111090.0,0.83122]
[1756827854267,0.50021602,111100.0,111090.0,0.83222]
[1756827855472,0.86787689,111100.0,111090.0,0.83222]
[1756827855675,0.86787689,111100.0,111090.0,0.44442]
[1756827855877,0.86787689,111100.0,111090.0,0.94102]
[1756827856777,0.87668429,111100.0,111090.0,0.94102]
[1756827856977,0.87668429,111100.0,111090.0,0.92568]
[1756827857186,0.87668429,111100.0,111090.0,0.90568]
[1756827857669,0.87668429,111100.0,111090.0,0.04828]
[1756827857869,0.87668429,111100.0,111090.0,0.92094]
[1756827858979,0.87668429,111100.0,111090.0,0.9056]
[1756827859275,1.23748429,111100.0,111090.0,0.9056]
[1756827860077,1.23748429,111100.0,111090.0,0.04828]
[1756827860272,1.48748429,111100.0,111090.0,0.001]
[1756827860884,2.34468429,111100.0,111090.0,0.001]
[1756827861183,2.34464429,111100.0,111090.0,0.001]
[1756827861478,2.71262574,111100.0,111090.0,0.001]
[1756827862779,0.08395,111080.0,111070.0,1.28783116]
[1756827862981,0.45177116,111080.0,111070.0,0.92001]
[1756827863580,0.08395,111070.0,111060.0,0.79243116]
[1756827863780,0.08395,111070.0,111060.0,2.00951116]
[1756827864373,0.07995,111070.0,111060.0,2.00951116]
[1756827865083,0.04926,111070.0,111060.0,2.37733232]
[1756827865381,0.41708116,111070.0,111060.0,1.64169]
[1756827865578,0.41708116,111070.0,111060.0,0.17381]
[1756827865779,1.13888116,111070.0,111060.0,0.05047]
[1756827865983,1.13888116,111070.0,111060.0,0.07081]